{"text_format":"3","workbook":"xlsx","n_sheets":1,"sheets":["CHECK REGISTER"],"not_rendered":{"defined_names":2},"read":"whole","date_system":"1900"}

{"sheet":"CHECK REGISTER","index":0,"n_rows":25,"n_cols":8,"rows_kept":25}
[]
[null,"Check Register"]
[]
[null,"NUMBER","DATE","DESCRIPTION OF TRANSACTION","C","DEBIT (-)","CREDIT (+)","BALANCE"]
[null,null,"2013-12-20","Previous balance",1,null,{"v":435.99,"d":"$435.99"},{"$f":"IF(COUNT(tblData[[#This Row],[DEBIT (-)]:[CREDIT (+)]])=0,\"\",-SUM(INDEX(tblData[DEBIT (-)],1):tblData[[#This Row],[DEBIT (-)]])+SUM(INDEX(tblData[CREDIT (+)],1):tblData[[#This Row],[CREDIT (+)]]))","v":{"v":435.99,"d":"$435.99"}}]
[null,1033,"2013-12-21","Groceries",null,{"v":123.78,"d":"$123.78"},null,{"$f":"IF(COUNT(tblData[[#This Row],[DEBIT (-)]:[CREDIT (+)]])=0,\"\",-SUM(INDEX(tblData[DEBIT (-)],1):tblData[[#This Row],[DEBIT (-)]])+SUM(INDEX(tblData[CREDIT (+)],1):tblData[[#This Row],[CREDIT (+)]]))","v":{"v":312.21000000000004,"d":"$312.21"}}]
[null,null,"2013-12-22","Utilities",1,{"v":195.18,"d":"$195.18"},null,{"$f":"IF(COUNT(tblData[[#This Row],[DEBIT (-)]:[CREDIT (+)]])=0,\"\",-SUM(INDEX(tblData[DEBIT (-)],1):tblData[[#This Row],[DEBIT (-)]])+SUM(INDEX(tblData[CREDIT (+)],1):tblData[[#This Row],[CREDIT (+)]]))","v":{"v":117.02999999999997,"d":"$117.03"}}]
[null,null,"2013-12-22","Deposit (payroll, rental receipts)",5,null,{"v":4000,"d":"$4,000.00"},{"$f":"IF(COUNT(tblData[[#This Row],[DEBIT (-)]:[CREDIT (+)]])=0,\"\",-SUM(INDEX(tblData[DEBIT (-)],1):tblData[[#This Row],[DEBIT (-)]])+SUM(INDEX(tblData[CREDIT (+)],1):tblData[[#This Row],[CREDIT (+)]]))","v":{"v":4117.03,"d":"$4,117.03"}}]
[null,1034,"2014-01-03","Dry cleaner",null,{"v":10.75,"d":"$10.75"},null,{"$f":"IF(COUNT(tblData[[#This Row],[DEBIT (-)]:[CREDIT (+)]])=0,\"\",-SUM(INDEX(tblData[DEBIT (-)],1):tblData[[#This Row],[DEBIT (-)]])+SUM(INDEX(tblData[CREDIT (+)],1):tblData[[#This Row],[CREDIT (+)]]))","v":{"v":4106.28,"d":"$4,106.28"}}]
[{"$nulls":7},{"$f":"IF(COUNT(tblData[[#This Row],[DEBIT (-)]:[CREDIT (+)]])=0,\"\",-SUM(INDEX(tblData[DEBIT (-)],1):tblData[[#This Row],[DEBIT (-)]])+SUM(INDEX(tblData[CREDIT (+)],1):tblData[[#This Row],[CREDIT (+)]]))","v":""}]
[{"$nulls":7},{"$f":"IF(COUNT(tblData[[#This Row],[DEBIT (-)]:[CREDIT (+)]])=0,\"\",-SUM(INDEX(tblData[DEBIT (-)],1):tblData[[#This Row],[DEBIT (-)]])+SUM(INDEX(tblData[CREDIT (+)],1):tblData[[#This Row],[CREDIT (+)]]))","v":""}]
[{"$nulls":7},{"$f":"IF(COUNT(tblData[[#This Row],[DEBIT (-)]:[CREDIT (+)]])=0,\"\",-SUM(INDEX(tblData[DEBIT (-)],1):tblData[[#This Row],[DEBIT (-)]])+SUM(INDEX(tblData[CREDIT (+)],1):tblData[[#This Row],[CREDIT (+)]]))","v":""}]
[{"$nulls":7},{"$f":"IF(COUNT(tblData[[#This Row],[DEBIT (-)]:[CREDIT (+)]])=0,\"\",-SUM(INDEX(tblData[DEBIT (-)],1):tblData[[#This Row],[DEBIT (-)]])+SUM(INDEX(tblData[CREDIT (+)],1):tblData[[#This Row],[CREDIT (+)]]))","v":""}]
[{"$nulls":7},{"$f":"IF(COUNT(tblData[[#This Row],[DEBIT (-)]:[CREDIT (+)]])=0,\"\",-SUM(INDEX(tblData[DEBIT (-)],1):tblData[[#This Row],[DEBIT (-)]])+SUM(INDEX(tblData[CREDIT (+)],1):tblData[[#This Row],[CREDIT (+)]]))","v":""}]
[{"$nulls":7},{"$f":"IF(COUNT(tblData[[#This Row],[DEBIT (-)]:[CREDIT (+)]])=0,\"\",-SUM(INDEX(tblData[DEBIT (-)],1):tblData[[#This Row],[DEBIT (-)]])+SUM(INDEX(tblData[CREDIT (+)],1):tblData[[#This Row],[CREDIT (+)]]))","v":""}]
[{"$nulls":7},{"$f":"IF(COUNT(tblData[[#This Row],[DEBIT (-)]:[CREDIT (+)]])=0,\"\",-SUM(INDEX(tblData[DEBIT (-)],1):tblData[[#This Row],[DEBIT (-)]])+SUM(INDEX(tblData[CREDIT (+)],1):tblData[[#This Row],[CREDIT (+)]]))","v":""}]
[{"$nulls":7},{"$f":"IF(COUNT(tblData[[#This Row],[DEBIT (-)]:[CREDIT (+)]])=0,\"\",-SUM(INDEX(tblData[DEBIT (-)],1):tblData[[#This Row],[DEBIT (-)]])+SUM(INDEX(tblData[CREDIT (+)],1):tblData[[#This Row],[CREDIT (+)]]))","v":""}]
[{"$nulls":7},{"$f":"IF(COUNT(tblData[[#This Row],[DEBIT (-)]:[CREDIT (+)]])=0,\"\",-SUM(INDEX(tblData[DEBIT (-)],1):tblData[[#This Row],[DEBIT (-)]])+SUM(INDEX(tblData[CREDIT (+)],1):tblData[[#This Row],[CREDIT (+)]]))","v":""}]
[{"$nulls":7},{"$f":"IF(COUNT(tblData[[#This Row],[DEBIT (-)]:[CREDIT (+)]])=0,\"\",-SUM(INDEX(tblData[DEBIT (-)],1):tblData[[#This Row],[DEBIT (-)]])+SUM(INDEX(tblData[CREDIT (+)],1):tblData[[#This Row],[CREDIT (+)]]))","v":""}]
[{"$nulls":7},{"$f":"IF(COUNT(tblData[[#This Row],[DEBIT (-)]:[CREDIT (+)]])=0,\"\",-SUM(INDEX(tblData[DEBIT (-)],1):tblData[[#This Row],[DEBIT (-)]])+SUM(INDEX(tblData[CREDIT (+)],1):tblData[[#This Row],[CREDIT (+)]]))","v":""}]
[{"$nulls":7},{"$f":"IF(COUNT(tblData[[#This Row],[DEBIT (-)]:[CREDIT (+)]])=0,\"\",-SUM(INDEX(tblData[DEBIT (-)],1):tblData[[#This Row],[DEBIT (-)]])+SUM(INDEX(tblData[CREDIT (+)],1):tblData[[#This Row],[CREDIT (+)]]))","v":""}]
[{"$nulls":7},{"$f":"IF(COUNT(tblData[[#This Row],[DEBIT (-)]:[CREDIT (+)]])=0,\"\",-SUM(INDEX(tblData[DEBIT (-)],1):tblData[[#This Row],[DEBIT (-)]])+SUM(INDEX(tblData[CREDIT (+)],1):tblData[[#This Row],[CREDIT (+)]]))","v":""}]
[{"$nulls":7},{"$f":"IF(COUNT(tblData[[#This Row],[DEBIT (-)]:[CREDIT (+)]])=0,\"\",-SUM(INDEX(tblData[DEBIT (-)],1):tblData[[#This Row],[DEBIT (-)]])+SUM(INDEX(tblData[CREDIT (+)],1):tblData[[#This Row],[CREDIT (+)]]))","v":""}]
[{"$nulls":7},{"$f":"IF(COUNT(tblData[[#This Row],[DEBIT (-)]:[CREDIT (+)]])=0,\"\",-SUM(INDEX(tblData[DEBIT (-)],1):tblData[[#This Row],[DEBIT (-)]])+SUM(INDEX(tblData[CREDIT (+)],1):tblData[[#This Row],[CREDIT (+)]]))","v":""}]
[{"$nulls":7},{"$f":"IF(COUNT(tblData[[#This Row],[DEBIT (-)]:[CREDIT (+)]])=0,\"\",-SUM(INDEX(tblData[DEBIT (-)],1):tblData[[#This Row],[DEBIT (-)]])+SUM(INDEX(tblData[CREDIT (+)],1):tblData[[#This Row],[CREDIT (+)]]))","v":""}]